Cogmind - Beta 15 @@@ ROGUE MODE // 2025.10.17 @ 21:30:03 Player: mogus Result: Destroyed by D-53 Grenadier with Mini Grenade Launcher Performance ------------- Evolutions (0) 0 Regions Visited (4) 800 Robots Destroyed (17) 85 Value Destroyed (501) 501 Prototype IDs (3) 60 Alien Tech Used (0) 0 Bonus (-90) -90 TOTAL SCORE: 1356 Bonus ------- Follower Combat Kills 42 Friendly Fire -132 Cogmind --------- Core Integrity 0/250 Matter 300/300 Energy 90/100 System Corruption 0% Temperature Cool (0) Movement Core (50) Location -9/Mines Parts ------- > --- POWER (1) -------- (None) > --- PROPULSION (2) --- (None) > --- UTILITY (2) ------ Targeting Computer > --- WEAPON (2) ------- (None) > --- INVENTORY (5) ---- Scrap Suit Transport Network Coupler Heavy EM Pulse Gun Mini Grenade Launcher Peak State ------------ > --- POWER ------------ Ion Engine > --- PROPULSION ------- Light Treads Improved Flight Unit > --- UTILITY ---------- Large Storage Unit Targeting Computer > --- WEAPON ----------- Improved Light Cannon Improved Light Cannon > --- INVENTORY -------- Ion Engine Light Treads Small Matter Pod Medium Matter Pod Sensor Array Signal Interpreter ECM Suite Power Shielding Utility Shielding Heavy EM Pulse Gun Improved Light Cannon Improved Light Cannon Mini Grenade Launcher Datajack Hammer [Rating: 12] Favorites ----------- Power Ion Engine Engine Ion Engine Propulsion Light Treads Treads Light Treads Flight Unit Improved Flight Unit Utility Targeting Computer Storage Large Storage Unit Processor Targeting Computer Weapon Improved Light Cannon Energy Gun Medium Laser Ballistic Gun Assault Rifle Ballistic Cannon Improved Light Cannon Launcher Mini Grenade Launcher Special Melee Weapon Datajack Build | -11 -10 -10 -10 -9 ------- Run | Yrd Mat Min Exi Min Slots Evolved . | . . . . . Power . | . . . . . Propulsion . | . . . . . Utility . | . . . . . Weapon . | . . . . . Parts Attached 18 | 6 7 4 . 1 Power 3 | 1 1 1 . . Engine 3 | 1 1 1 . . Core . | . . . . . Reactor . | . . . . . Propulsion 3 | 2 1 . . . Treads 2 | 2 . . . . Leg . | . . . . . Wheel . | . . . . . Hover . | . . . . . Flight 1 | . 1 . . . Utility 4 | 1 3 . . . Device . | . . . . . Storage 2 | 1 1 . . . Processor 2 | . 2 . . . Hackware . | . . . . . Protection . | . . . . . Artifact . | . . . . . Weapon 8 | 2 2 3 . 1 Energy Gun 1 | 1 . . . . Energy Cannon . | . . . . . Ballistic Gun 1 | 1 . . . . Ballistic Cannon 4 | . 2 2 . . Launcher 1 | . . . . 1 Special Weapon . | . . . . . Impact Weapon . | . . . . . Slashing Weapon . | . . . . . Piercing Weapon . | . . . . . Special Melee Weapon 1 | . . 1 . . Unidentified Prototypes 1 | . 1 . . . Parts Lost 5 | . 1 . . 4 Power 1 | . . . . 1 Propulsion 2 | . . . . 2 Utility 1 | . 1 . . . Weapon 1 | . . . . 1 Highest Loss Streak 4 | . 1 . . 4 To Critical Strikes . | . . . . . Average Backups 11 | 1 8 14 14 14 Power 1 | . 1 1 1 1 Propulsion . | . . . . . Utility 5 | . 4 6 7 7 Weapon 4 | . 2 5 5 5 Tool/Special . | . . . . . Unused Backups 17 | . 3 4 . 10 Power 1 | . 1 . . . Propulsion . | . . . . . Utility 12 | . 2 3 . 7 Weapon 4 | . . 1 . 3 Tool/Special . | . . . . . Average Slot Usage (%) 99 | . 98 100 100 87 Engine 13 | . 14 14 14 11 Treads 27 | . 27 28 28 22 Storage 13 | . 14 14 14 12 Processor 13 | . 13 14 14 14 Ballistic Cannon 26 | . 23 27 28 22 Peak Build Rating 12 | 6 12 11 11 11 Average Rating 10 | 3 9 10 11 10 On Entrance 7 | . 6 11 11 11 Naked Turns . | . . . . . Heaviest Build 33 | 14 33 33 33 33 Greatest Support 40 | 40 40 40 40 40 Greatest Overweight (x) 9 | . 9 . . 8 Average Overweight (x) . | . . . . . Largest Inventory Capacity 15 | 8 15 15 15 15 Average Capacity 13 | 6 10 15 15 14 Most Carried 15 | 4 15 15 15 15 Average Carried 12 | 1 8 14 15 14 Final Capacity 15 | 8 15 15 15 5 Final Carried 15 | 1 15 15 15 5 Class Distribution -------------------- 100% | Mutant Dominant Class ---------------- Mutant | -10/Materials Mutant | -10/Mines Mutant | -10/Exiles Mutant | -9/Mines Resources | -11 -10 -10 -10 -9 ----------- Run | Yrd Mat Min Exi Min Matter Collected 901 | 180 454 213 . 54 Remotely . | . . . . . Salvage Created 477 | . 386 . . 91 Parts 25 | . 19 . . 6 Haulers Intercepted . | . . . . . Recyclers Shooed . | . . . . . Parts Field Recycled . | . . . . . Retrieved Matter . | . . . . . Parts Self-Destructed . | . . . . . Prevented . | . . . . . Kills | -11 -10 -10 -10 -9 ------- Run | Yrd Mat Min Exi Min Combat Hostiles Destroyed 21 | . 11 . . 10 Guns 4 | . 4 . . . Cannons 8 | . 7 . . 1 AOE 9 | . . . . 9 Classes Destroyed 6 | . 3 . . 3 Operator 1 | . 1 . . . Watcher 2 | . 2 . . . Swarmer 1 | . . . . 1 Grunt 12 | . 11 . . 1 Assembled 9 | . . . . 9 Guerrilla 1 | . . . . 1 Best Kill Streak 9 | . 3 . . 9 Combat Bots Only 9 | . 3 . . 9 Max Kills in Single Turn 5 | . 1 . . 5 Gunslinging . | . . . . . Exploded 3 | . . . . 3 Melee . | . . . . . Uniques/NPCs Destroyed . | . . . . . Combat | -11 -10 -10 -10 -9 -------- Run | Yrd Mat Min Exi Min Hostile Shots Fired 74 | . 42 . . 32 Missed 12 | . 5 . . 7 Hits 62 | . 37 . . 25 Projectile 62 | . 37 . . 25 AOE 6 | . . . . 6 Part Disruptions 1 | . . . . 1 Damage Taken 1049 | . 475 . . 574 Core 298 | . 67 . . 231 Absorbed by Shields . | . . . . . Core Remaining (%) 100 | 100 . . . . Volleys Fired 47 | . 40 . . 7 Largest 2 | . 2 . . 2 Hottest 70 | . 70 . . 66 Shots Fired 90 | . 80 . . 10 Gun 21 | . 21 . . . Cannon 65 | . 59 . . 6 Launcher 4 | . . . . 4 Special . | . . . . . Kinetic 77 | . 71 . . 6 Thermal 9 | . 9 . . . Explosive 4 | . . . . 4 Electromagnetic . | . . . . . Robot Hit Streak 20 | . 20 . . 5 Robot Miss Streak 4 | . 4 . . 2 Penetration Max . | . . . . . Secondary Targets . | . . . . . Shots Hit Robots 57 | . 52 . . 5 Core Hits 41 | . 21 . . 20 Critical Kills . | . . . . . Critical Parts Destroyed . | . . . . . Critical Strikes 2 | . 2 . . . Burn 1 | . 1 . . . Blast 1 | . 1 . . . Melee Attacks . | . . . . . Impact . | . . . . . Slashing . | . . . . . Piercing . | . . . . . Sneak Attacks . | . . . . . Combat Hostiles . | . . . . . Follow-up Attacks . | . . . . . Damage Inflicted 1664 | . 931 . . 733 Guns 246 | . 246 . . . Cannons 771 | . 685 . . 86 Explosions 647 | . . . . 647 Melee . | . . . . . Ramming . | . . . . . Kinetic 906 | . 820 . . 86 Thermal 111 | . 111 . . . Explosive 647 | . . . . 647 Electromagnetic . | . . . . . Impact . | . . . . . Slashing . | . . . . . Piercing . | . . . . . Highest Corruption . | . . . . . Average Corruption . | . . . . . Corruption Purged . | . . . . . Corruption Blocked . | . . . . . Overload Shots . | . . . . . Overflow Damage 22 | . 2 . . 20 Projectiles 6 | . 2 . . 4 Explosions 16 | . . . . 16 Melee . | . . . . . Knockbacks 13 | . 10 . . 3 Impact . | . . . . . Kinetic 12 | . 9 . . 3 Secondary 1 | . 1 . . . Self-Inflicted Damage 74 | . . . . 74 Shots 3 | . . . . 3 Rammed . | . . . . . Targets Rammed . | . . . . . Kicked . | . . . . . Crushed . | . . . . . Highest Temperature 102 | . 102 . . 18 Average Temperature 33 | . 35 . . 10 Received Heat Transfer 327 | . 267 . . 60 Siege Activations . | . . . . . Martial Activations . | . . . . . Shielding Activations . | . . . . . Robots Disrupted . | . . . . . Combat Hostiles . | . . . . . Robots Corrupted . | . . . . . Combat Hostiles . | . . . . . Parts Fried . | . . . . . Impact Corruptions . | . . . . . Robots Melted . | . . . . . Combat Hostiles . | . . . . . Parts Melted . | . . . . . Heat Transferred 407 | . 407 . . . Parts Sabotaged . | . . . . . Parts Stolen . | . . . . . Parts Stripped . | . . . . . Power Chain Reactions . | . . . . . Alert | -11 -10 -10 -10 -9 ------- Run | Yrd Mat Min Exi Min Maximum Alert Level . | . . . . . Low Security (%) 100 | 100 100 100 . 100 Level 1 . | . . . . . Level 2 . | . . . . . Level 3 . | . . . . . Level 4 . | . . . . . Level 5 . | . . . . . High Security . | . . . . . Max Security . | . . . . . Peak Influence 177 | . 65 . . 177 Initial . | . . . . . Average 12 | . 16 . . 144 Influence Increases 552 | . 354 . . 198 Destroy 0b10 Robot/C 360 | . 220 . . 140 Destroy 0b10 Robot/NC 15 | . 15 . . . Destroy Leader 74 | . 54 . . 20 Allied During Kill 16 | . . . . 16 Successful Hack 12 | . 12 . . . Disable Machine 45 | . 45 . . . Destroy Structure 30 | . 8 . . 22 Influence Decreases 454 | . 354 . . 100 Time Decay 384 | . 344 . . 40 Lost Part 50 | . 10 . . 40 Lost Ally 20 | . . . . 20 Squads Dispatched 3 | . 3 . . . Investigation 1 | . 1 . . . Extermination . | . . . . . Reinforcement 2 | . 2 . . . Assault . | . . . . . Garrison . | . . . . . Intercept . | . . . . . Searches Triggered . | . . . . . Construction Impeded . | . . . . . Haulers Reinforced . | . . . . . Active Scanning Responses . | . . . . . Cargo Convoy Interrupts . | . . . . . Stealth | -11 -10 -10 -10 -9 --------- Run | Yrd Mat Min Exi Min Distress Signals . | . . . . . Communications Jammed . | . . . . . Distress Signals . | . . . . . Times Spotted 41 | . 16 . . 25 Peak Tracking Total 13 | . 3 . . 13 Tactical Retreats . | . . . . . Traps | -11 -10 -10 -10 -9 ------- Run | Yrd Mat Min Exi Min Traps Triggered 1 | . 1 . . . Indirectly . | . . . . . Trap Hack Attempts . | . . . . . Triggered . | . . . . . Disarmed . | . . . . . Reprogrammed . | . . . . . Reused . | . . . . . Traps Extracted . | . . . . . Installed . | . . . . . Triggered . | . . . . . Machines | -11 -10 -10 -10 -9 ---------- Run | Yrd Mat Min Exi Min Machines Disabled 3 | . 3 . . . Max in Single Turn 1 | . 1 . . . Machines Repaired . | . . . . . Machines Dismantled . | . . . . . Machines Sabotaged . | . . . . . Overloaded Fab Kills . | . . . . . Hacking | -11 -10 -10 -10 -9 --------- Run | Yrd Mat Min Exi Min Machines Accessed 7 | . 3 . 4 . Terminals 3 | . 3 . . . Fabricators . | . . . . . Repair Stations . | . . . . . Recycling Units . | . . . . . Scanalyzers . | . . . . . Garrison Access . | . . . . . Total Hacks 11 | . 7 . 4 . Successful 7 | . 3 . 4 . Failed 4 | . 4 . . . Catastrophic . | . . . . . Database Lockouts . | . . . . . Manual . | . . . . . Terminals 7 | . 7 . . . Fabricators . | . . . . . Repair Stations . | . . . . . Recycling Units . | . . . . . Scanalyzers . | . . . . . Garrison Access . | . . . . . Terminal Hacks 7 | . 3 . 4 . Record 5 | . 1 . 4 . Prototype ID Bank 1 | . 1 . . . Branch Access Points 1 | . 1 . . . Fabricator Hacks . | . . . . . Repair Station Hacks . | . . . . . Recycling Unit Hacks . | . . . . . Scanalyzer . | . . . . . Garrison Access Hacks . | . . . . . Unauthorized Hacks . | . . . . . Terminals . | . . . . . Fabricators . | . . . . . Repair Stations . | . . . . . Recycling Units . | . . . . . Scanalyzers . | . . . . . Garrison Access . | . . . . . Data Cores Recovered 1 | . 1 . . . Used . | . . . . . Hacking Detections 2 | . 2 . . . Full Trace Events 1 | . 1 . . . Feedback Events . | . . . . . Feedback Blocked . | . . . . . Robot Schematics Acquired . | . . . . . Robots Built . | . . . . . Authchips . | . . . . . Time . | . . . . . Total Robot Build Rating . | . . . . . Part Schematics Acquired . | . . . . . Parts Built . | . . . . . Authchips . | . . . . . Time . | . . . . . Total Part Build Rating . | . . . . . Parts Repaired . | . . . . . Time . | . . . . . Parts Recycled . | . . . . . Recycled Matter . | . . . . . Retrieved Matter . | . . . . . Retrieved Components . | . . . . . Parts Scanalyzed . | . . . . . Part Schematics Acquired . | . . . . . Parts Damaged . | . . . . . Bothacking | -11 -10 -10 -10 -9 ------------ Run | Yrd Mat Min Exi Min Used RIF Installer . | . . . . . Robots Hacked . | . . . . . Non-combat . | . . . . . Combat . | . . . . . Robot Hacks Applied . | . . . . . Relay Couplers Released . | . . . . . Fabnet Peak Effective % . | . . . . . Robots Rewired . | . . . . . Allies Hacked . | . . . . . Hacks Repelled . | . . . . . Allies | -11 -10 -10 -10 -9 -------- Run | Yrd Mat Min Exi Min Total Allies 3 | . . 3 . . Largest Group 3 | . . 3 2 2 Highest-Rated Group 40 | . . 40 24 24 Highest-Rated Ally 16 | . . 16 16 16 Total Orders . | . . . . . Ally Attacks 18 | . . . . 18 Total Damage 149 | . . . . 149 Kills 7 | . . . . 7 Allies Corrupted . | . . . . . Allies Melted . | . . . . . Intel | -11 -10 -10 -10 -9 ------- Run | Yrd Mat Min Exi Min Active Infowar (turns) . | . . . . . Robot Analysis Total . | . . . . . Derelict Logs Recovered 2 | . . 2 . . Drone Launches . | . . . . . Drone Recoveries . | . . . . . Exploration | -11 -10 -10 -10 -9 ------------- Run | Yrd Mat Min Exi Min Turns Passed 4079 | 71 1433 1384 1100 91 Spaces Moved 2346 | 50 769 795 688 44 Core 29 | 19 3 . . 7 Treads 2317 | 31 766 795 688 37 Legs . | . . . . . Wheels . | . . . . . Hover . | . . . . . Flight . | . . . . . Fastest Speed 50 | 50 160 160 160 50 Average Speed 159 | 118 161 160 160 162 Slowest Speed 500 | 160 500 160 160 450 Overloaded Moves . | . . . . . Propulsion Burnouts . | . . . . . Robots Hopped . | . . . . . Potential Cave-ins . | . . . . . Cave-ins Triggered . | . . . . . Exploration Rate (%) 59 | 3 85 99 93 18 Regions Visited 4 Branch Regions 3 Pre-discovered Areas . | . . . . . Known Exits Taken 1 | . 1 . . . Unknown Exits Taken 3 | 1 . 1 1 . Scrap Searched 3 | . . 3 . . Spaces Dug . | . . . . . Terrain Destroyed 28 | . 4 . . 24 Melee . | . . . . . Projectile 5 | . 4 . . 1 AOE 23 | . . . . 23 Terrain Rammed . | . . . . . Walls Destroyed . | . . . . . Machines Disabled . | . . . . . Actions | -11 -10 -10 -10 -9 --------- Run | Yrd Mat Min Exi Min Total 2595 | 62 884 908 687 54 Wait 125 | . 29 96 . . Move 2342 | 49 768 794 687 44 Hop . | . . . . . Pick Up 39 | 7 26 6 . . Fast Attach 1 | . 1 . . . Attach 11 | 6 5 . . . Detach . | . . . . . Swap 12 | . 6 5 . 1 Drop 18 | . 9 7 . 2 Fire 47 | . 40 . . 7 Melee . | . . . . . Ram . | . . . . . Kick . | . . . . . Crush . | . . . . . Escape Stasis . | . . . . . Rewire . | . . . . . Trap . | . . . . . Miscellaneous . | . . . . . Route ------- -11/Scrapyard -10/Materials (discovered 5 exits: [*Mat x2] / *Min x2 / *Sub) -10/Mines (discovered 4 exits: [*Mat x2] / *Exi / *Sub) -10/Exiles (discovered 2 exits: [*Min x2]) -9/Mines History --------- Turn | Location | Event 2 | -11/Scrapyard | Met Revision 17 4 | -11/Scrapyard | Discovered new exit (range 13) 72 | -11/Scrapyard | Entered Materials 318 | -10/Materials | Build established: Mutant 564 | -10/Materials | Discovered new exit (range 7) 654 | -10/Materials | Identified exit to Mines 923 | -10/Materials | Discovered new exit (range 15) 1003 | -10/Materials | Discovered new exit (range 9) 1505 | -10/Materials | Entered Mines 1523 | -10/Mines | Deemed a non-threat by the Exiles lab entrance 1523 | -10/Mines | Discovered new exit (range 5) 1569 | -10/Mines | Identified exit to Subcaves 1614 | -10/Mines | Assisted by bots powering up and referring to "LRC-V3" 1793 | -10/Mines | Learned Materials emergency access door positions 1796 | -10/Mines | Discovered new exit (range 7) 2138 | -10/Mines | Discovered new exit (range 7) 2206 | -10/Mines | YI-UF0 nonchalantly dropped a Grenade Launcher on the ground 2415 | -10/Mines | Found a Scrap Suit stashed away for nefarious purposes 2425 | -10/Mines | Found Scrap Suit 2889 | -10/Mines | Entered Exiles 2889 | -10/Exiles | Found Exiles lab abandoned 2889 | -10/Exiles | Accompanied by 2 allies 2917 | -10/Exiles | Discovered new exit (range 15) 3169 | -10/Exiles | Discovered new exit (range 10) 3989 | -10/Exiles | Entered Mines 3989 | -9/Mines | Accompanied by 2 allies 4043 | -9/Mines | Assembled infested the area 4048 | -9/Mines | Assisted by a Guerilla fighting off Assembled 4069 | -9/Mines | Core integrity fell below 50% 4079 | -9/Mines | Core integrity fell below 20% 4080 | -9/Mines | Destroyed by D-53 Grenadier with Mini Grenade Launcher Last Messages --------------- Destroyed Asb. Hover Unit. as-81422 destroyed. Trooper 1a destroyed. 98-K4Q(h) destroyed. [Achievement: Backstab] Lgt. Treads destroyed. C-30 ARC bursts open, deploying its payload. D-53 Grenadier unfolds itself. Ion Engine destroyed. Lgt. Treads destroyed. as-27622 destroyed. as-58979 destroyed. R-06 Scavenger destroyed. The unstable cave ceiling collapses. Dropped Lrg. Storage Unit. Dropped Mni. Grenade Launcher. Imp. Light Cannon destroyed. Acquired 30 matter. K-01 Serf collects debris. The unstable cave ceiling collapses. Map ----- +----------------------------------------------------+ | ????????????????????????????????????????????? | | ????????????????????????????????????????????? | | ????????????????????????????????????????????? | | ????????????????????????????????????????????? | | ????????????????????????????????????????????? | | ????????????????????????????????????????????? | | ????????????????????????????????????????????? | | ????????????????????????????????????????????? | | ????????????????????????????????????????????? | | ?????? #????????????????????????????????????? | | ????#% ##???????###????????????????????????? | | ???# % ?????? #????????????????????????? | | ?## ????? #????????????????????????? | | ?# #????# #????????????????????????? | | ?? #???# #????????????????????????? | | ??# % #### #????????????????????????? | | ??# # #????????????????????????? | | ??# ##?????????#?????????????? | | ???# dd #?????## ??????????????? | | ????# #???? ??????????????? | | ?????# $ #### #????????????? | | ??????# = "%" #?????????????? | | ???????# % " #???????????????? | | ???????## / #### ##???????????????? | | ????????## % !!!* #### #????????????????? | | ?????????### !]] *@ $ #????????????????? | | ???????????# #### #????????????????? | | ???????????### #??????????????????????? | | ?????????????# ######??????????????????????? | | ?????????????# #???????????????????????????? | | ?????????????# #???????????????????????????? | | ?????????????# #???????????????????????????? | | ?????????????# ########????????????????????? | | ?????????????# ## #????????????????????? | | ????????????## [%= """#????????????????????? | | ????????????#" ## """#????????????????????? | | ????????????## %## """#????????????????????? | | ?????????????#%*## #????????????????????? | | ???????????###= ## #????????????????????? | | ???????????#%= #######????????????????????? | | ???????????#[ #??????????????????????????? | | ???????????#= #??????????????????????????? | | ???????????# = #??????????????????????????? | | ???????????# #??????????????????????????? | | ???????????# #??????????????????????????? | | ???????????#######??????????????????????????? | | ????????????????????????????????????????????? | | ????????????????????????????????????????????? | | ????????????????????????????????????????????? | | ????????????????????????????????????????????? | +----------------------------------------------------+ Best States ------------- Heat Dissipation 25 Energy Generation 10 Energy Capacity 250 Matter Stores 300 Matter Capacity 300 Sight Range 16 Terrain Scan Density 10 Evasion (%) 50 Targeting Accuracy 5 Recoil Reduction 2 Item Schematics ----------------- None Robot Schematics ------------------ None Fabricated ------------ Nothing Repaired ---------- Nothing Alien Tech Used ----------------- None Achievements -------------- Backstab Challenges ------------ None Game ------ Seed IntegratedChromaticArmor Manual? 0 Play Time 00:21:31 Cumulative 13.4 hours Start 2025.10.17 @ 21:09:29 End 2025.10.17 @ 21:30:03 Sessions 1 Manual Loads 0 Difficulty Rogue Special Mode None Game No. 15 Rogue 10 Adventurer 5 Explorer 0 Win Type - Total 0 Types 0/0/0/0/0/0/0/0/0/0 Lore% 15 Gallery% 22 Achievement% 19 Wizard Run 0 Options --------- Layout 1 ASCII 0 Keyboard 0 Movement Mouse Keybinds 0 Fullscreen 1 Font 24/Smallcaps Map View 50x35 Zoom Use 0% Tactical HUD 0 Map Filters NONE Filters NONE Steam 1 RUN: 5ee36903-73ba-4db7-90d9-a7519b58d6df